[Event "44th Chess Olympiad Open 2022"]
[Site "Chennai"]
[Date "2022.07.30"]
[Round "2.55"]
[White "Mathurin, Nathaniel"]
[Black "Abdelhakiem Abdellatief Nogda"]
[Result "1-0"]
[WhiteElo "1722"]
[BlackElo "1960"]
[Annotator "NA"]
[PlyCount "111"]
[EventDate "2022.??.??"]
[TimeControl "60"]

1. d4 {[%emt 0:00:03]} g6 {[%emt 0:00:31]} 2. c4 {[%emt 0:00:35]} Bg7 {[%emt 0:
00:00]} 3. Nc3 {[%emt 0:00:02]} d6 {[%emt 0:00:18]} 4. e4 {[%emt 0:01:14]} e5 {
[%emt 0:00:25]} 5. Nge2 {[%emt 0:00:11]} Nc6 {[%emt 0:00:33]} 6. Be3 {[%emt 0:
00:00]} Nge7 {[%emt 0:02:21]} 7. d5 {[%emt 0:01:33]} Nb8 {[%emt 0:00:49]} 8.
Qd2 {[%emt 0:03:35]} f5 {[%emt 0:01:08]} 9. f3 {[%emt 0:00:39]} f4 {[%emt 0:00:
00]} 10. Bf2 {[%emt 0:03:22]} O-O {[%emt 0:00:20]} 11. c5 {[%emt 0:03:27]} Na6
{[%emt 0:00:49]} 12. Na4 {[%emt 0:01:25]} g5 {[%emt 0:07:06]} 13. b4 {[%emt 0:
00:00]} Ng6 {[%emt 0:00:51]} 14. Nc1 {[%emt 0:05:37]} Qe7 {[%emt 0:00:38]} 15.
Nb3 {[%emt 0:00:56]} Nb8 {[%emt 0:02:18]} 16. Nc3 {[%emt 0:08:09]} Nd7 {
[%emt 0:01:42]} 17. c6 {[%emt 0:01:35]} Nf6 {[%emt 0:00:16]} 18. cxb7 {[%emt 0:
00:00]} Bxb7 {[%emt 0:00:17]} 19. Na5 {[%emt 0:01:00]} Bc8 {[%emt 0:03:11]} 20.
Nc6 {[%emt 0:00:46]} Qf7 {[%emt 0:00:28]} 21. Nxa7 {[%emt 0:00:16]} g4 {
[%emt 0:03:33]} 22. Ncb5 {[%emt 0:01:02]} Ba6 {[%emt 0:02:03]} 23. Rc1 {
[%emt 0:00:20]} Bxb5 {[%emt 0:01:20]} 24. Nxb5 {[%emt 0:00:04]} Rfc8 {[%emt 0:
00:00]} 25. a4 {[%emt 0:00:02]} h5 {[%emt 0:03:09]} 26. a5 {[%emt 0:01:07]} Ne8
{[%emt 0:01:29]} 27. Na7 {[%emt 0:01:16]} Rd8 {[%emt 0:04:30]} 28. b5 {[%emt 0:
00:00]} Bf6 {[%emt 0:01:54]} 29. Nc6 {[%emt 0:01:23]} Rdc8 {[%emt 0:02:18]} 30.
b6 {[%emt 0:02:10]} cxb6 {[%emt 0:00:15]} 31. axb6 {[%emt 0:00:02]} Qb7 {
[%emt 0:00:19]} 32. Bc4 {[%emt 0:01:00]} Nh4 {[%emt 0:04:38]} 33. O-O {[%emt 0:
00:00]} gxf3 {[%emt 0:00:46]} 34. g3 {[%emt 0:00:01]} Ng2 {[%emt 0:01:39]} 35.
Na5 {[%emt 0:00:15]} Rxa5 {[%emt 0:00:53]} 36. Qxa5 {[%emt 0:00:02]} Ra8 {
[%emt 0:00:12]} 37. Qb5 {[%emt 0:02:45]} Qf7 {[%emt 0:07:26]} 38. Qc6 {[%emt 0:
00:00]} Rb8 {[%emt 0:01:55]} 39. Ba6 {[%emt 0:00:00]} Bd8 {[%emt 0:00:52]} 40.
Bc8 {[%emt 0:00:03]} Kh8 {[%emt 0:07:33]} 41. b7 {[%emt 0:30:44]} Ne3 {[%emt 0:
00:00]} 42. Be6 {[%emt 0:00:36]} Qf8 {[%emt 0:02:28]} 43. gxf4 {[%emt 0:03:45]}
Nxf1 {[%emt 0:01:06]} 44. Kxf1 {[%emt 0:02:41]} Bc7 {[%emt 0:01:38]} 45. Ba7 {
[%emt 0:02:16]} Rd8 {[%emt 0:00:58]} 46. Bb6 {[%emt 0:02:45]} Bxb6 {[%emt 0:00:
00]} 47. Qxb6 {[%emt 0:00:01]} Qxf4 {[%emt 0:00:38]} 48. Qxd8 {[%emt 0:06:34]}
Qxc1+ {[%emt 0:00:20]} 49. Kf2 {[%emt 0:00:00]} Qd2+ {[%emt 0:01:14]} 50. Kg3 {
[%emt 0:04:28]} Qg2+ {[%emt 0:06:27]} 51. Kh4 {[%emt 0:00:04]} Qxh2+ {[%emt 0:
00:00]} 52. Kg5 {[%emt 0:06:43]} Qf4+ {[%emt 0:08:03]} 53. Kxh5 {[%emt 0:00:03]
} Qh2+ {[%emt 0:02:22]} 54. Qh4 {[%emt 0:00:02]} Qg1 {[%emt 0:02:23]} 55. Bg4 {
[%emt 0:00:07]} Kg7 {[%emt 0:01:35]} 56. Qe7+ {[%emt 0:03:13]} 1-0

[Event "44th Chess Olympiad Open 2022"]
[Site "Chennai"]
[Date "2022.07.30"]
[Round "2.56"]
[White "Michaelides, Konstantinos"]
[Black "Amega-Dzaka, Komi Nukunu"]
[Result "1-0"]
[WhiteElo "2300"]
[BlackElo "1639"]
[Annotator "TA"]
[PlyCount "47"]
[EventDate "2022.??.??"]
[TimeControl "60"]

{[%evp 10,46,13,7,0,0,0,9,10,8,13,0,0,0,0,0,0,0,23,0,22,0,0,-11,9,14,62,33,39,
20,61,53,118,120,122,110,1614,1568,29999]} 1. d4 {[%emt 0:00:07]} d5 {[%emt 0:
00:00]} 2. c4 {[%emt 0:00:10]} c6 {[%emt 0:00:49]} 3. cxd5 {[%emt 0:00:15]}
cxd5 {[%emt 0:00:12]} 4. Bf4 {[%emt 0:00:10]} Nf6 {[%emt 0:00:22]} 5. Nc3 {
[%emt 0:00:31]} Qb6 {[%emt 0:00:33]} 6. Qd2 {[%emt 0:05:31]} (6. e3 {is
interesting.} Qxb2 7. Bb5+ Bd7 8. Bxd7+ Nbxd7 9. Nge2) 6... Nc6 {[%emt 0:00:56]
D10: Slav Defence: 3 cxd5 (without early Nf3) and 3 Nc3.} 7. e3 {[%emt 0:02:11]
} Bf5 {[%emt 0:00:17]} 8. f3 {[%emt 0:03:37] Against Ne4} e6 {[%emt 0:04:00]
The position is equal.} 9. Rc1 {[%emt 0:07:00]} Be7 {[%emt 0:02:35]} 10. Nge2 {
[%emt 0:06:34]} O-O {[%emt 0:00:39] [#]} 11. g4 $146 {[%emt 0:02:38]} ({
Predecessor:} 11. Ng3 Bg6 12. Be2 Rac8 13. O-O a6 14. a3 Qb3 15. Bd1 Qb6 16.
Na4 Qb5 17. Nc5 {0-1 (82) Reilly,T (2355)-Comp Genius 2 Canberra 1994}) 11...
Bg6 {[%emt 0:00:41]} 12. h4 {[%emt 0:00:25] [#] aiming for h5.} h5 {[%emt 0:00:
00]} 13. g5 {[%emt 0:02:40]} Ne8 {[%emt 0:03:06]} 14. Bg3 {[%emt 0:05:32]} (14.
Na4 $5 {[%cal Ra4b6]} Qb4 15. Nec3 $11) 14... Bd6 {[%emt 0:03:46]} (14... Nd6
$5 {[%cal Rd6c4]} 15. Nf4 Nf5 $11) 15. Bxd6 {[%emt 0:03:06]} Nxd6 {[%emt 0:00:
00]} 16. Nf4 {[%emt 0:00:15]} Nf5 {[%emt 0:01:47]} 17. Bd3 {[%emt 0:04:29]}
Rad8 {[%emt 0:03:15]} (17... Nce7 $11 {should be considered.}) 18. Bxf5 {
[%emt 0:10:18]} Bxf5 {[%emt 0:01:14]} 19. Nxh5 {[%emt 0:02:07] next Ng3 is
good for White.} e5 {[%emt 0:00:18][%cal Re5d4]} 20. Ne2 {[%emt 0:11:37]} exd4
{[%emt 0:03:31]} ({Black should play} 20... Nb4 $14 21. O-O Nxa2) 21. Nxd4 $16
{[%emt 0:03:36]} Nxd4 {[%emt 0:00:07]} 22. Qxd4 {[%emt 0:00:46][%csl Gh5][%cal
Rd4g7] [#]} Qa5+ $2 {[%emt 0:00:17]} (22... Qxd4 $16 23. exd4 Rd6) 23. b4 $18 {
[%emt 0:00:18][%csl Gh5][%cal Rd4g7]} Qxa2 {[%emt 0:00:34]} 24. Qxg7# {[%emt 0:
00:08] Weighted Error Value: White=0.07 (flawless) /Black=0.57} 1-0

[Event "44th Chess Olympiad Open 2022"]
[Site "Chennai"]
[Date "2022.07.30"]
[Round "2.56"]
[White "Damianou, Ioannis"]
[Black "Strovsky, Mikhail"]
[Result "1/2-1/2"]
[WhiteElo "2153"]
[BlackElo "2158"]
[Annotator "RC"]
[PlyCount "118"]
[EventDate "2022.??.??"]
[TimeControl "60"]

1. c4 {[%emt 0:00:08]} Nf6 {[%emt 0:00:42]} 2. Nf3 {[%emt 0:00:20]} e6 {
[%emt 0:00:17]} 3. e3 {[%emt 0:00:15]} d5 {[%emt 0:00:23]} 4. Nc3 {[%emt 0:00:
00]} c5 {[%emt 0:01:07]} 5. d4 {[%emt 0:00:14]} Nc6 {[%emt 0:00:48]} 6. cxd5 {
[%emt 0:01:11]} exd5 {[%emt 0:00:37]} 7. Bb5 {[%emt 0:00:19]} a6 {[%emt 0:00:
00]} 8. Bxc6+ {[%emt 0:03:01]} bxc6 {[%emt 0:00:28]} 9. O-O {[%emt 0:15:11]}
Be7 {[%emt 0:02:21]} 10. h3 {[%emt 0:03:17]} O-O {[%emt 0:00:44]} 11. dxc5 {
[%emt 0:01:47]} Bxc5 {[%emt 0:00:55]} 12. b3 {[%emt 0:00:09]} Be6 {[%emt 0:00:
00]} 13. Bb2 {[%emt 0:03:27]} Qa5 {[%emt 0:18:48]} 14. a3 {[%emt 0:05:30]} Be7
{[%emt 0:01:33]} 15. Nd4 {[%emt 0:14:19]} c5 {[%emt 0:04:36]} 16. b4 {[%emt 0:
00:00]} cxb4 {[%emt 0:03:58]} 17. Nc6 {[%emt 0:00:07]} Qc7 {[%emt 0:02:25]} 18.
Nxb4 {[%emt 0:00:06]} Qb7 {[%emt 0:04:33]} 19. Ne2 {[%emt 0:13:36]} a5 {
[%emt 0:01:09]} 20. Nd3 {[%emt 0:00:06]} Rfc8 {[%emt 0:04:06]} 21. Nd4 {
[%emt 0:01:34]} Bd7 {[%emt 0:00:44]} 22. Rb1 {[%emt 0:04:05]} Qa6 {[%emt 0:00:
00]} 23. Ne5 {[%emt 0:00:25]} Be8 {[%emt 0:00:56]} 24. Nf5 {[%emt 0:03:23]} Qe6
{[%emt 0:01:41]} 25. Nxe7+ {[%emt 0:03:38]} Qxe7 {[%emt 0:00:07]} 26. Qd4 {
[%emt 0:00:12]} Ra6 {[%emt 0:01:15]} 27. Ng4 {[%emt 0:03:13]} Bb5 {[%emt 0:00:
00]} 28. Nxf6+ {[%emt 0:01:53]} Rxf6 {[%emt 0:01:02]} 29. Qg4 {[%emt 0:00:16]}
Qe6 {[%emt 0:01:43]} 30. Bxf6 {[%emt 0:04:25]} Qxg4 {[%emt 0:00:32]} 31. hxg4 {
[%emt 0:00:07]} Bxf1 {[%emt 0:00:19]} 32. Kxf1 {[%emt 0:00:25]} gxf6 {[%emt 0:
00:00]} 33. Rb5 {[%emt 0:00:06]} a4 {[%emt 0:00:44]} 34. Rb4 {[%emt 0:00:53]}
Rc2 {[%emt 0:00:47]} 35. Rxa4 {[%emt 0:01:35]} Ra2 {[%emt 0:00:19]} 36. g3 {
[%emt 0:02:35]} Kf8 {[%emt 0:00:11]} 37. Ra5 {[%emt 0:03:43]} Ke7 {[%emt 0:00:
00]} 38. Rxd5 {[%emt 0:01:39]} Rxa3 {[%emt 0:00:10]} 39. Rh5 {[%emt 0:00:55]}
Ra4 {[%emt 0:00:08]} 40. f3 {[%emt 0:00:46]} Ra1+ {[%emt 0:00:12]} 41. Ke2 {
[%emt 0:03:40]} Ra2+ {[%emt 0:00:11]} 42. Kd3 {[%emt 0:00:25]} Ra3+ {[%emt 0:
00:00]} 43. Ke4 {[%emt 0:04:15]} Ra4+ {[%emt 0:00:28]} 44. Kf5 {[%emt 0:00:15]}
Ra3 {[%emt 0:00:39]} 45. Kf4 {[%emt 0:00:06]} Ra4+ {[%emt 0:00:18]} 46. e4 {
[%emt 0:00:08]} Ra3 {[%emt 0:00:08]} 47. Rxh7 {[%emt 0:00:17]} Rb3 {[%emt 0:00:
00]} 48. Rh5 {[%emt 0:01:04]} Ra3 {[%emt 0:00:12]} 49. Rf5 {[%emt 0:00:59]} Ra1
{[%emt 0:00:49]} 50. g5 {[%emt 0:00:24]} fxg5+ {[%emt 0:00:04]} 51. Kxg5 {
[%emt 0:00:05]} Rg1 {[%emt 0:00:12]} 52. g4 {[%emt 0:00:07]} Rg3 {[%emt 0:00:
00]} 53. f4 {[%emt 0:00:36]} Rg1 {[%emt 0:00:34]} 54. Ra5 {[%emt 0:00:41]} Rh1
{[%emt 0:00:09]} 55. Ra7+ {[%emt 0:00:54]} Kf8 {[%emt 0:00:08]} 56. e5 {
[%emt 0:00:23]} Rh7 {[%emt 0:00:29]} 57. f5 {[%emt 0:00:43]} f6+ {[%emt 0:00:
00]} 58. Kxf6 {[%emt 0:00:11]} Rxa7 {[%emt 0:00:02]} 59. g5 {[%emt 0:01:12]}
Rf7+ {[%emt 0:01:37]} 1/2-1/2

[Event "44th Chess Olympiad Open 2022"]
[Site "Chennai"]
[Date "2022.07.30"]
[Round "2.56"]
[White "Tchouka, Yakini"]
[Black "Antoniou, Rafail"]
[Result "0-1"]
[WhiteElo "1934"]
[BlackElo "1817"]
[Annotator "NA RC"]
[PlyCount "36"]
[EventDate "2022.??.??"]
[TimeControl "60"]

1. e4 {[%emt 0:00:04]} c5 {[%emt 0:00:10]} 2. Nf3 {[%emt 0:00:06]} e6 {[%emt 0:
00:00]} 3. d4 {[%emt 0:00:12]} cxd4 {[%emt 0:00:31]} 4. Nxd4 {[%emt 0:00:09]}
Nf6 {[%emt 0:00:05]} 5. Nc3 {[%emt 0:00:22]} Nc6 {[%emt 0:00:18]} 6. Ndb5 {
[%emt 0:01:42]} Bb4 {[%emt 0:00:46]} 7. Nd6+ {[%emt 0:04:11]} Ke7 {[%emt 0:00:
00]} 8. Bf4 {[%emt 0:15:24]} e5 {[%emt 0:03:03]} 9. Nf5+ {[%emt 0:00:23]} Kf8 {
[%emt 0:00:07]} 10. Bg5 {[%emt 0:13:09]} d5 {[%emt 0:02:09]} 11. Bxf6 {[%emt 0:
00:00]} Qxf6 {[%emt 0:00:30]} 12. Qxd5 {[%emt 0:13:03]} Bxf5 {[%emt 0:04:18]}
13. exf5 {[%emt 0:00:13]} g6 {[%emt 0:03:39]} 14. fxg6 {[%emt 0:04:31]} hxg6 {
[%emt 0:00:21]} 15. a3 {[%emt 0:00:02]} Rd8 {[%emt 0:13:57]} 16. Qc4 {[%emt 0:
00:00]} Rh4 {[%emt 0:05:00]} 17. Qb3 {[%emt 0:01:08]} Re4+ {[%emt 0:02:07]} 18.
Be2 {[%emt 0:00:37]} Rxe2+ {[%emt 0:00:03]} 0-1

[Event "44th Chess Olympiad Open 2022"]
[Site "Chennai"]
[Date "2022.07.30"]
[Round "2.56"]
[White "Egbe, Kossi Thierry"]
[Black "Isaakidis, Alexandros"]
[Result "0-1"]
[WhiteElo "1703"]
[BlackElo "2165"]
[Annotator "RC"]
[PlyCount "31"]
[EventDate "2022.??.??"]
[TimeControl "60"]

1. e4 {[%emt 0:00:04]} c5 {[%emt 0:00:06]} 2. Nf3 {[%emt 0:00:52]} Nc6 {
[%emt 0:00:12]} 3. d4 {[%emt 0:01:05]} cxd4 {[%emt 0:00:08]} 4. Nxd4 {[%emt 0:
00:00]} Nf6 {[%emt 0:00:07]} 5. Nc3 {[%emt 0:00:16]} d6 {[%emt 0:00:07]} 6. Bg5
{[%emt 0:00:44]} e6 {[%emt 0:00:08]} 7. Qd2 {[%emt 0:02:28]} a6 {[%emt 0:00:07]
} 8. f4 {[%emt 0:01:00]} Bd7 {[%emt 0:00:35]} 9. Nxc6 {[%emt 0:05:11]} Bxc6 {
[%emt 0:01:50]} 10. e5 {[%emt 0:00:16]} dxe5 {[%emt 0:00:18]} 11. Qd4 {[%emt 0:
00:00]} Qd6 12. Qxd6 {[%emt 0:00:30]} Rc8 {[%emt 0:00:08]} 13. Qd8+ Rxd8 {
[%emt 0:01:01]} 14. fxe5 {[%emt 0:00:44]} h6 {[%emt 0:00:06]} 15. Bxh6 gxh6 {
[%emt 0:00:00]} 16. exf6 {[%emt 0:26:47]} 0-1

[Event "44th Chess Olympiad Open 2022"]
[Site "Chennai"]
[Date "2022.07.30"]
[Round "2.57"]
[White "Sultan, Ibrahim"]
[Black "Wane, Al Hassane"]
[Result "0-1"]
[WhiteElo "2108"]
[BlackElo "1750"]
[Annotator "NA RC"]
[PlyCount "106"]
[EventDate "2022.??.??"]
[TimeControl "60"]

1. d4 {[%emt 0:00:24]} d5 {[%emt 0:00:10]} 2. c4 {[%emt 0:00:37]} e6 {[%emt 0:
00:00]} 3. Nc3 {[%emt 0:00:04]} Nf6 {[%emt 0:00:16]} 4. Nf3 {[%emt 0:00:06]}
Nbd7 {[%emt 0:01:07]} 5. Bg5 {[%emt 0:00:09]} Be7 {[%emt 0:01:01]} 6. e3 {
[%emt 0:01:26]} c6 {[%emt 0:00:18]} 7. Qc2 {[%emt 0:01:08]} Ne4 {[%emt 0:06:01]
} 8. Bxe7 {[%emt 0:05:19]} Qxe7 {[%emt 0:02:28]} 9. Nxe4 {[%emt 0:00:04]} dxe4
{[%emt 0:00:32]} 10. Qxe4 {[%emt 0:01:33]} Qb4+ {[%emt 0:00:30]} 11. Nd2 {
[%emt 0:00:05]} Qxb2 {[%emt 0:01:13]} 12. Rb1 {[%emt 0:00:04]} Qxa2 {[%emt 0:
00:00]} 13. Bd3 {[%emt 0:03:00]} Qa5 {[%emt 0:02:01]} 14. Ke2 {[%emt 0:01:17]}
Nf6 {[%emt 0:00:58]} 15. Qf4 {[%emt 0:02:33]} O-O {[%emt 0:05:22]} 16. Ra1 {
[%emt 0:02:06]} Qh5+ {[%emt 0:01:17]} 17. f3 {[%emt 0:00:12]} Re8 {[%emt 0:00:
00]} 18. g4 {[%emt 0:00:21]} Qh4 {[%emt 0:09:33]} 19. Ra5 {[%emt 0:00:22]} e5 {
[%emt 0:07:59]} 20. Rxe5 {[%emt 0:07:33]} Bd7 {[%emt 0:04:37]} 21. Ra1 {
[%emt 0:19:43]} b5 {[%emt 0:07:20]} 22. Ra5 {[%emt 0:07:51]} bxc4 {[%emt 0:00:
00]} 23. Nxc4 {[%emt 0:01:03]} Nd5 {[%emt 0:04:41]} 24. Raxd5 {[%emt 0:00:06]}
cxd5 {[%emt 0:03:28]} 25. Rxd5 {[%emt 0:01:10]} Qe7 {[%emt 0:01:49]} 26. Nd6 {
[%emt 0:08:15]} Reb8 {[%emt 0:01:50]} 27. Kf2 {[%emt 0:21:32]} Qh4+ {[%emt 0:
00:00]} 28. Kg1 {[%emt 0:08:59]} Qe1+ {[%emt 0:03:08]} 29. Kg2 {[%emt 0:00:08]}
Be6 {[%emt 0:01:28]} 30. Bc4 {[%emt 0:03:13]} Rb2+ {[%emt 0:03:12]} 31. Kh3 {
[%emt 0:00:05]} Bxd5 {[%emt 0:00:47]} 32. Bxd5 {[%emt 0:00:05]} Qf1+ {[%emt 0:
00:00]} 33. Kh4 {[%emt 0:00:04]} Qf2+ {[%emt 0:01:52]} 34. Kg5 {[%emt 0:00:05]}
h6+ {[%emt 0:01:07]} 35. Kf5 {[%emt 0:00:04]} Rd8 {[%emt 0:02:42]} 36. Bxf7+ {
[%emt 0:01:03]} Kf8 {[%emt 0:01:09]} 37. Qe4 {[%emt 0:06:40]} Rbb8 {[%emt 0:00:
00]} 38. Qc6 {[%emt 0:00:30]} Qxh2 {[%emt 0:02:16]} 39. f4 {[%emt 0:00:29]} Rb6
{[%emt 0:01:26]} 40. Qc7 {[%emt 0:00:08]} Rbxd6 {[%emt 0:00:02]} 41. Bc4 {
[%emt 0:30:13]} Rf6+ {[%emt 0:30:44]} 42. Ke4 {[%emt 0:00:46]} Re8+ {[%emt 0:
00:00]} 43. Kd3 {[%emt 0:00:02]} g5 {[%emt 0:00:00]} 44. Qc5+ {[%emt 0:00:00]}
Re7 {[%emt 0:00:00]} 45. fxg5 {[%emt 0:00:00]} hxg5 {[%emt 0:00:00]} 46. Qc8+ {
[%emt 0:00:00]} Re8 {[%emt 0:00:00]} 47. Qc5+ {[%emt 0:00:00]} Qd6 {[%emt 0:00:
00]} 48. Qxg5 {[%emt 0:00:00]} Qa3+ {[%emt 0:00:00]} 49. Ke2 {[%emt 0:00:00]}
Qb2+ {[%emt 0:00:00]} 50. Kd1 {[%emt 0:00:00]} Qb1+ {[%emt 0:00:00]} 51. Ke2 {
[%emt 0:00:00]} Qf1+ {[%emt 0:00:00]} 52. Kd2 {[%emt 0:00:00]} Rf2+ {[%emt 0:
00:00]} 53. Kc3 {[%emt 0:00:00]} Qe1+ {[%emt 0:00:00]} 0-1

[Event "44th Chess Olympiad Open 2022"]
[Site "Chennai"]
[Date "2022.07.30"]
[Round "2.57"]
[White "Abdulrahman Mohammad, Al Taher"]
[Black "Diop, Wara"]
[Result "1-0"]
[WhiteElo "2029"]
[BlackElo "1636"]
[Annotator "NA"]
[PlyCount "77"]
[EventDate "2022.??.??"]
[TimeControl "60"]

1. d4 {[%emt 0:00:07]} d5 {[%emt 0:00:13]} 2. c4 {[%emt 0:00:11]} dxc4 {
[%emt 0:00:40]} 3. Nf3 {[%emt 0:00:25]} Nf6 {[%emt 0:00:22]} 4. e3 {[%emt 0:00:
00]} Bg4 {[%emt 0:03:06]} 5. Bxc4 {[%emt 0:03:22]} e6 {[%emt 0:00:36]} 6. Nc3 {
[%emt 0:04:38]} Be7 {[%emt 0:00:58]} 7. h3 {[%emt 0:04:02]} Bh5 {[%emt 0:00:21]
} 8. O-O {[%emt 0:05:46]} O-O {[%emt 0:00:23]} 9. a3 {[%emt 0:08:07]} c5 {
[%emt 0:01:56]} 10. d5 {[%emt 0:03:29]} exd5 {[%emt 0:07:55]} 11. Nxd5 {
[%emt 0:01:17]} Bd6 {[%emt 0:03:14]} 12. Nxf6+ {[%emt 0:11:52]} Qxf6 {[%emt 0:
00:00]} 13. Qd5 {[%emt 0:03:31]} Bxf3 {[%emt 0:00:37]} 14. Qxf3 {[%emt 0:00:10]
} Qxf3 {[%emt 0:00:16]} 15. gxf3 {[%emt 0:00:02]} Rd8 {[%emt 0:02:16]} 16. Bd2
{[%emt 0:05:40]} Be5 {[%emt 0:02:31]} 17. Rfd1 {[%emt 0:01:35]} Nc6 {[%emt 0:
00:00]} 18. Rab1 {[%emt 0:04:00]} Rd6 {[%emt 0:01:38]} 19. Kf1 {[%emt 0:04:23]}
Rad8 {[%emt 0:02:55]} 20. Ke2 {[%emt 0:01:20]} Bf6 {[%emt 0:02:58]} 21. f4 {
[%emt 0:04:51]} a6 {[%emt 0:00:46]} 22. b4 {[%emt 0:09:08]} b5 {[%emt 0:03:03]}
23. bxc5 {[%emt 0:01:11]} Rxd2+ {[%emt 0:01:26]} 24. Rxd2 {[%emt 0:00:01]} bxc4
{[%emt 0:00:10]} 25. Rb6 {[%emt 0:01:35]} Rc8 {[%emt 0:02:54]} 26. Rd6 {
[%emt 0:04:40]} Nd8 {[%emt 0:05:04]} 27. Rxa6 {[%emt 0:04:01]} Be7 {[%emt 0:00:
00]} 28. Rd4 {[%emt 0:00:47]} c3 {[%emt 0:03:00]} 29. Rc4 {[%emt 0:01:11]} Rxc5
{[%emt 0:05:16]} 30. Rxc5 {[%emt 0:00:05]} Bxc5 {[%emt 0:00:34]} 31. Ra8 {
[%emt 0:00:04]} Be7 {[%emt 0:02:17]} 32. a4 {[%emt 0:00:22]} f5 {[%emt 0:02:55]
} 33. a5 {[%emt 0:00:21]} Kf7 {[%emt 0:00:38]} 34. a6 {[%emt 0:00:09]} Nc6 {
[%emt 0:03:16]} 35. Rc8 {[%emt 0:02:30]} Na7 {[%emt 0:02:22]} 36. Rc7 {[%emt 0:
00:00]} Nb5 {[%emt 0:01:37]} 37. Rb7 {[%emt 0:00:21]} Na3 {[%emt 0:02:29]} 38.
a7 {[%emt 0:00:49]} c2 {[%emt 0:00:43]} 39. Kd2 {[%emt 0:00:10]} 1-0

[Event "44th Chess Olympiad Open 2022"]
[Site "Chennai"]
[Date "2022.07.30"]
[Round "2.57"]
[White "Cisse, Amadou Lamine"]
[Black "Othman, A. Moussa"]
[Result "0-1"]
[WhiteElo "2005"]
[BlackElo "2229"]
[Annotator "RC"]
[PlyCount "72"]
[EventDate "2022.??.??"]
[TimeControl "60"]

1. d4 {[%emt 0:00:15]} g6 {[%emt 0:00:10]} 2. c4 {[%emt 0:01:47]} Bg7 {[%emt 0:
00:00]} 3. Nc3 {[%emt 0:00:36]} c5 {[%emt 0:00:53]} 4. d5 {[%emt 0:01:43]} d6 {
[%emt 0:01:08]} 5. e4 {[%emt 0:01:44]} Nf6 {[%emt 0:00:41]} 6. Be3 {[%emt 0:00:
00]} b5 {[%emt 0:05:24]} 7. cxb5 {[%emt 0:01:53]} Nbd7 {[%emt 0:00:55]} 8. f4 {
[%emt 0:02:29]} a6 {[%emt 0:03:29]} 9. Nf3 {[%emt 0:02:14]} O-O {[%emt 0:00:57]
} 10. bxa6 {[%emt 0:02:04]} Qa5 {[%emt 0:04:48]} 11. Bd2 {[%emt 0:03:46]} Bxa6
{[%emt 0:00:39]} 12. Bxa6 {[%emt 0:02:01]} Qxa6 {[%emt 0:00:27]} 13. Qe2 {
[%emt 0:01:55]} Rfb8 {[%emt 0:00:42]} 14. Rb1 {[%emt 0:04:30]} Rb4 {[%emt 0:00:
00]} 15. Qxa6 {[%emt 0:05:50]} Rxa6 {[%emt 0:00:10]} 16. a3 {[%emt 0:06:28]}
Rb3 {[%emt 0:00:21]} 17. O-O {[%emt 0:02:03]} Rab6 {[%emt 0:05:40]} 18. e5 {
[%emt 0:04:14]} dxe5 {[%emt 0:06:45]} 19. fxe5 {[%emt 0:02:59]} Ng4 {[%emt 0:
00:00]} 20. e6 {[%emt 0:09:35]} fxe6 {[%emt 0:03:03]} 21. dxe6 {[%emt 0:00:45]}
Rxe6 {[%emt 0:11:31]} 22. h3 {[%emt 0:03:03]} Nge5 {[%emt 0:18:11]} 23. Ng5 {
[%emt 0:05:03]} Rd6 {[%emt 0:01:47]} 24. Nge4 {[%emt 0:12:34]} Nc4 {[%emt 0:00:
00]} 25. Bg5 {[%emt 0:10:47]} Re6 {[%emt 0:02:52]} 26. Rbd1 {[%emt 0:00:59]}
Bd4+ {[%emt 0:00:35]} 27. Kh1 {[%emt 0:01:02]} Nxb2 {[%emt 0:05:04]} 28. Rb1 {
[%emt 0:02:24]} Rxc3 {[%emt 0:02:38]} 29. Nxc3 {[%emt 0:00:13]} Bxc3 {[%emt 0:
00:00]} 30. Rf2 {[%emt 0:02:42]} Nd3 {[%emt 0:02:06]} 31. Rc2 {[%emt 0:01:21]}
Bd4 {[%emt 0:00:43]} 32. Kh2 {[%emt 0:01:49]} N7e5 {[%emt 0:00:56]} 33. Bh6 {
[%emt 0:00:13]} g5 {[%emt 0:01:16]} 34. Rb8+ {[%emt 0:00:56]} Kf7 {[%emt 0:00:
00]} 35. Bxg5 {[%emt 0:00:00]} Ne1 {[%emt 0:00:00]} 36. Re2 {[%emt 0:00:00]}
N5f3+ {[%emt 0:00:00]} 0-1

[Event "44th Chess Olympiad Open 2022"]
[Site "Chennai"]
[Date "2022.07.30"]
[Round "2.57"]
[White "Badji, Sekou Aransbene"]
[Black "Mohamed Saeed Laily"]
[Result "0-1"]
[WhiteElo "1732"]
[BlackElo "2030"]
[Annotator "NA"]
[PlyCount "46"]
[EventDate "2022.??.??"]
[TimeControl "60"]

1. d4 {[%emt 0:00:03]} d5 {[%emt 0:00:09]} 2. Nf3 {[%emt 0:01:15]} Bf5 {
[%emt 0:00:10]} 3. c4 {[%emt 0:02:08]} e6 {[%emt 0:00:07]} 4. Nc3 {[%emt 0:00:
00]} Nc6 {[%emt 0:00:58]} 5. Bf4 {[%emt 0:04:00]} Nf6 {[%emt 0:03:04]} 6. e3 {
[%emt 0:00:42]} Bd6 {[%emt 0:03:07]} 7. Bg3 {[%emt 0:03:58]} O-O {[%emt 0:00:
00]} 8. Be2 {[%emt 0:01:16]} h6 {[%emt 0:02:51]} 9. O-O {[%emt 0:01:30]} Bxg3 {
[%emt 0:12:01]} 10. hxg3 {[%emt 0:00:16]} dxc4 {[%emt 0:00:37]} 11. Bxc4 {
[%emt 0:00:16]} a6 {[%emt 0:00:28]} 12. a4 {[%emt 0:01:59]} Qe7 {[%emt 0:00:50]
} 13. Bd3 {[%emt 0:01:25]} Bg4 {[%emt 0:01:03]} 14. Na2 {[%emt 0:07:55]} Rfd8 {
[%emt 0:05:00]} 15. Qb3 {[%emt 0:02:35]} Rab8 {[%emt 0:14:17]} 16. Rac1 {
[%emt 0:01:28]} Bxf3 {[%emt 0:02:18]} 17. gxf3 {[%emt 0:00:10]} e5 {[%emt 0:00:
00]} 18. dxe5 {[%emt 0:05:48]} Nxe5 {[%emt 0:00:10]} 19. Be2 {[%emt 0:00:39]}
Rd2 {[%emt 0:06:51]} 20. Rfe1 {[%emt 0:12:42]} Rxe2 {[%emt 0:23:53]} 21. Rxe2 {
[%emt 0:00:12]} Nxf3+ {[%emt 0:00:04]} 22. Kf1 {[%emt 0:05:24]} Qe4 {[%emt 0:
00:00]} 23. Rc4 {[%emt 0:29:35]} Nd4 {[%emt 0:02:34]} 0-1